bitfinex/quotes_SOLUSD_20250624
["timestamp","ask_amount","ask_price","bid_price","bid_amount"]
[1750758622001,5.17593676,144.5,144.4,7.7615]
[1750758622170,5.17593676,144.51,144.4,7.7615]
[1750758624195,25.95593676,144.52,144.4,7.7615]
[1750758624387,29.49627828,144.52,144.4,7.7615]
[1750758627399,29.49627828,144.52,144.41,1.545]
[1750758627696,8.71627828,144.52,144.41,1.545]
[1750758631573,146.6,144.53,144.41,1.545]
[1750758632374,146.6,144.53,144.39,81.04312478]
[1750758632375,146.6,144.53,144.43,1.5052]
[1750758634383,150.03437734,144.53,144.43,1.5052]
[1750758642795,7.6678261,144.59,144.39,81.04312478]
[1750758642796,154.2678261,144.59,144.46,7.749]
[1750758642997,5.14559632,144.58,144.46,7.749]
[1750758643477,5.14559632,144.58,144.47,1.5245]
[1750758643675,146.6,144.59,144.49,1.5245]
[1750758645186,5.14643755,144.58,144.49,1.5245]
[1750758645391,5.14643755,144.58,144.39,81.04312478]
[1750758645392,1.5787,144.57,144.45,1.5275]
[1750758645698,25.92643755,144.56,144.45,1.5275]
[1750758645901,32.3465948,144.56,144.45,1.5275]
[1750758646307,20.78,144.54,144.45,1.5275]
[1750758646610,167.38,144.54,144.45,1.5275]
[1750758646906,20.78,144.53,144.45,1.5275]
[1750758648191,25.92933139,144.53,144.45,1.5275]
[1750758649002,25.92933139,144.53,144.42,1.5925]
[1750758649200,172.52933139,144.53,144.42,1.5925]
[1750758649394,20.78,144.51,144.42,1.5925]
[1750758650688,5.14933139,144.52,144.42,1.5925]
[1750758651392,5.14933139,144.52,144.43,6.2251]
[1750758651591,146.6,144.53,144.44,1.5925]
[1750758651988,22.3587,144.57,144.44,1.5925]
[1750758652190,174.10906703,144.57,144.44,1.5925]
[1750758652398,25.93036703,144.56,144.44,1.5925]
[1750758660114,5.15036703,144.55,144.44,1.5925]
[1750758660323,25.93036703,144.55,144.44,1.5925]
[1750758660521,20.78,144.55,144.44,1.5925]
[1750758660695,25.93036703,144.55,144.44,1.5925]
[1750758660896,20.78,144.55,144.44,1.5925]
[1750758661117,25.93036703,144.55,144.44,1.5925]
[1750758661316,20.78,144.55,144.44,1.5925]
[1750758661518,25.93036703,144.55,144.44,1.5925]
[1750758661705,20.78,144.55,144.44,1.5925]
[1750758661905,25.93036703,144.55,144.44,1.5925]
[1750758662123,25.93036703,144.54,144.44,1.5925]
[1750758662304,20.78,144.54,144.44,1.5925]
[1750758662504,20.78,144.52,144.44,1.5925]
[1750758662793,25.93036703,144.52,144.44,1.5925]
[1750758662994,20.78,144.52,144.44,1.5925]
[1750758663414,5.15036703,144.51,144.44,1.5925]
[1750758663936,5.15036703,144.53,144.44,1.5925]
[1750758664433,5.15036703,144.55,144.44,1.5925]
[1750758664597,5.15036703,144.54,144.44,1.5925]
[1750758664799,5.15036703,144.53,144.44,1.5925]
[1750758664997,5.15036703,144.55,144.44,1.5925]
[1750758665222,5.15036703,144.54,144.44,1.5925]
[1750758665545,5.15036703,144.53,144.44,1.5925]
[1750758665714,5.15036703,144.55,144.44,1.5925]
[1750758665897,5.15036703,144.54,144.44,1.5925]
[1750758666102,5.15036703,144.53,144.44,1.5925]
[1750758666314,5.15036703,144.52,144.44,1.5925]
[1750758666513,5.15036703,144.55,144.44,1.5925]
[1750758666698,5.15036703,144.54,144.44,1.5925]
[1750758666909,5.15036703,144.53,144.44,1.5925]
[1750758667110,5.15036703,144.52,144.44,1.5925]
[1750758667312,5.15036703,144.55,144.44,1.5925]
[1750758667538,5.15036703,144.54,144.44,1.5925]
[1750758667833,5.15036703,144.53,144.44,1.5925]
[1750758668035,5.15036703,144.52,144.44,1.5925]
[1750758668245,11.57052428,144.55,144.44,1.5925]
[1750758668414,5.15036703,144.54,144.44,1.5925]
[1750758668614,5.15036703,144.53,144.44,1.5925]
[1750758668816,5.15036703,144.55,144.44,1.5925]
[1750758669017,5.15036703,144.54,144.44,1.5925]
[1750758669218,5.15036703,144.53,144.44,1.5925]
[1750758669419,5.15036703,144.52,144.44,1.5925]
[1750758669621,5.15036703,144.55,144.44,1.5925]
[1750758669825,5.15036703,144.54,144.44,1.5925]
[1750758670027,27.20015725,144.56,144.44,1.5925]
[1750758670028,5.15036703,144.53,144.44,1.5925]
[1750758670233,5.15036703,144.52,144.44,1.5925]
[1750758670438,25.93036703,144.51,144.44,1.5925]
[1750758670625,5.15036703,144.5,144.44,1.5925]
[1750758670822,5.15036703,144.49,144.44,1.5925]
[1750758671021,5.15036703,144.48,144.44,1.5925]
[1750758671232,11.57052428,144.51,144.44,1.5925]
[1750758671422,25.93036703,144.5,144.4,82.63001238]
[1750758671736,5.15036703,144.49,144.4,82.63001238]
[1750758671921,5.15036703,144.48,144.4,82.63001238]
[1750758672238,5.15036703,144.49,144.4,82.63001238]
[1750758672437,5.15036703,144.48,144.4,82.63001238]
[1750758672629,5.15036703,144.47,144.4,82.63001238]
[1750758672833,5.15036703,144.49,144.4,82.63001238]
[1750758673136,5.15036703,144.48,144.4,82.63001238]
[1750758673343,5.15036703,144.49,144.4,82.63001238]
[1750758673640,5.15036703,144.5,144.4,82.63001238]
[1750758673828,5.15036703,144.49,144.4,82.63001238]
[1750758674030,5.15036703,144.51,144.4,82.63001238]
[1750758674229,5.15036703,144.5,144.4,82.63001238]
[1750758674431,5.15036703,144.49,144.4,82.63001238]
[1750758674638,5.15036703,144.5,144.4,82.63001238]
[1750758674944,5.15036703,144.49,144.4,82.63001238]
[1750758675129,5.15036703,144.5,144.4,82.63001238]
[1750758675328,20.78,144.51,144.4,82.63001238]
[1750758675329,5.15036703,144.49,144.4,82.63001238]
[1750758675530,5.15036703,144.5,144.4,82.63001238]
[1750758675723,25.93036703,144.49,144.4,82.63001238]
[1750758675924,5.15036703,144.48,144.4,82.63001238]
[1750758677540,25.93036703,144.49,144.4,82.63001238]
[1750758677834,5.15036703,144.48,144.4,82.63001238]
[1750758678031,5.15036703,144.47,144.4,82.63001238]
[1750758678229,25.93036703,144.48,144.4,82.63001238]
[1750758678427,5.15036703,144.47,144.4,82.63001238]
[1750758678938,5.15036703,144.48,144.4,82.63001238]
[1750758680543,5.15036703,144.47,144.4,82.63001238]
[1750758680733,5.15036703,144.48,144.4,82.63001238]
[1750758680932,5.15036703,144.47,144.4,82.63001238]
[1750758681244,5.15036703,144.48,144.4,82.63001238]
[1750758684144,151.75036703,144.48,144.4,82.63001238]
[1750758684349,5.15036703,144.47,144.4,82.63001238]
[1750758687456,146.6,144.48,144.4,82.63001238]
[1750758687948,5.15665616,144.47,144.4,82.63001238]
[1750758688861,146.6,144.48,144.4,82.63001238]
[1750758690334,14.86400142,144.51,144.4,82.63001238]
[1750758692667,14.86400142,144.51,144.4,81.03751238]
[1750758692837,14.86400142,144.51,144.41,7.7913]
[1750758693033,14.86400142,144.51,144.42,1.5785]
[1750758693255,14.86400142,144.51,144.43,6.2251]
[1750758693448,14.86400142,144.51,144.43,7.8036]
[1750758694738,14.86400142,144.51,144.44,1.5925]
[1750758714384,14.86400142,144.51,144.43,6.2251]
[1750758714385,6.45152687,144.59,144.46,1.5925]
[1750758714680,5.16135672,144.59,144.49,6.1494]
[1750758714976,5.16135672,144.59,144.5,1.5925]
[1750758715360,146.6,144.6,144.5,1.5925]
[1750758715980,167.38,144.6,144.5,1.5925]
[1750758722982,146.6,144.6,144.5,1.5925]
[1750758726693,167.38,144.6,144.5,1.5925]
[1750758728887,20.78,144.59,144.47,6.2251]
[1750758729190,25.92287928,144.59,144.47,6.2251]
[1750758729690,20.78,144.59,144.47,6.2251]
[1750758732474,25.92883434,144.59,144.47,6.2251]
[1750758734572,25.92883434,144.59,144.48,1.5543]
[1750758736192,5.14883434,144.59,144.48,1.5543]
[1750758736397,146.6,144.6,144.48,1.5543]
[1750758737292,5.15435212,144.59,144.48,1.5543]
[1750758737598,146.6,144.6,144.48,1.5543]
[1750758738198,24.2020054,144.61,144.44,94.96455913]
[1750758738199,24.2020054,144.61,144.5,1.5925]
[1750758744194,29.35631555,144.61,144.5,1.5925]
[1750758744403,175.95631555,144.61,144.5,1.5925]
[1750758744605,5.15431015,144.6,144.5,1.5925]
[1750758744918,170.8020054,144.61,144.5,1.5925]
[1750758745225,170.8020054,144.61,144.51,6.1573]
[1750758745394,170.8020054,144.61,144.51,7.7407]
[1750758747381,5.15622417,144.6,144.51,7.7407]
[1750758748782,25.93622417,144.6,144.51,7.7407]
[1750758754124,5.15622417,144.59,144.51,7.7407]
[1750758754429,25.93622417,144.59,144.51,7.7407]
[1750758754605,20.78,144.59,144.51,7.7407]
[1750758754929,25.93622417,144.59,144.51,7.7407]
[1750758755088,20.78,144.59,144.51,7.7407]
[1750758755409,20.78,144.57,144.51,7.7407]
[1750758756214,25.93622417,144.57,144.51,7.7407]
[1750758756407,20.78,144.57,144.51,7.7407]
[1750758756709,25.93622417,144.57,144.51,7.7407]
[1750758756910,5.15622417,144.58,144.51,7.7407]
[1750758758392,146.6,144.59,144.51,7.7407]
[1750758758393,5.15622417,144.57,144.51,7.7407]
[1750758758600,5.15622417,144.58,144.51,7.7407]
[1750758759227,5.15622417,144.57,144.51,7.7407]
[1750758759516,5.15622417,144.58,144.51,7.7407]
[1750758759719,146.6,144.59,144.51,7.7407]
[1750758759720,5.15622417,144.57,144.51,7.7407]
[1750758759924,5.15622417,144.58,144.51,7.7407]
[1750758760215,5.15622417,144.57,144.51,7.7407]
[1750758760521,5.15622417,144.58,144.51,7.7407]
[1750758760713,5.15622417,144.57,144.51,7.7407]
[1750758760918,5.15622417,144.58,144.51,7.7407]
[1750758761106,5.15622417,144.57,144.51,7.7407]
[1750758761300,167.38,144.59,144.51,7.7407]
[1750758761503,5.17463882,144.58,144.51,7.7407]
[1750758761700,5.17463882,144.57,144.51,7.7407]
[1750758761901,5.17463882,144.56,144.51,7.7407]
[1750758762104,167.38,144.59,144.51,7.7407]
[1750758762305,5.17429835,144.58,144.51,7.7407]
[1750758762501,5.17429835,144.57,144.51,7.7407]
[1750758762715,5.17429835,144.56,144.51,7.7407]
[1750758762915,167.38,144.59,144.51,7.7407]
[1750758763115,5.17397807,144.58,144.51,7.7407]
[1750758763402,5.17397807,144.57,144.51,7.7407]
[1750758763599,5.17397807,144.56,144.51,7.7407]
[1750758763798,167.38,144.59,144.51,7.7407]
[1750758764016,5.17299015,144.58,144.51,7.7407]
[1750758764232,5.17299015,144.57,144.51,7.7407]
[1750758764524,5.17299015,144.56,144.51,7.7407]
[1750758764729,167.38,144.59,144.51,7.7407]
[1750758764931,25.9522557,144.58,144.51,7.7407]
[1750758765113,5.1722557,144.57,144.51,1.5834]
[1750758765313,5.1722557,144.56,144.51,1.5834]
[1750758765525,20.78,144.58,144.51,1.5834]
[1750758765718,5.17240502,144.57,144.51,1.5834]
[1750758766033,20.78,144.58,144.51,1.5834]
[1750758766034,5.17240502,144.56,144.51,1.5834]
[1750758766325,153.05152687,144.59,144.51,1.5834]
[1750758766628,5.1718606,144.58,144.51,1.5834]
[1750758766820,5.1718606,144.57,144.51,1.5834]
[1750758767021,5.1718606,144.56,144.51,1.5834]
[1750758767327,5.1718606,144.58,144.51,1.5834]
[1750758767515,5.1718606,144.57,144.51,1.5834]
[1750758767717,5.1718606,144.56,144.51,1.5834]
[1750758767923,146.6,144.59,144.51,1.5834]
[1750758768143,5.1741291,144.58,144.51,1.5834]
[1750758768317,5.1741291,144.57,144.51,1.5834]
[1750758768629,5.1741291,144.56,144.51,1.5834]
[1750758768830,146.6,144.59,144.51,1.5834]
[1750758769132,25.95459482,144.58,144.51,1.5834]
[1750758769308,5.17459482,144.57,144.51,1.5834]
[1750758769623,5.17459482,144.56,144.51,1.5834]
[1750758769925,5.17459482,144.55,144.51,1.5834]
[1750758770114,5.17459482,144.57,144.51,1.5834]
[1750758770313,5.17459482,144.56,144.51,1.5834]
[1750758770637,5.17459482,144.55,144.51,1.5834]
[1750758770798,5.17459482,144.54,144.51,1.5834]
[1750758771002,27.23152687,144.57,144.48,6.2251]
[1750758771200,25.96110276,144.56,144.48,6.2251]
[1750758771414,5.18110276,144.55,144.48,6.2251]
[1750758771628,5.18110276,144.54,144.48,6.2251]
[1750758771834,5.18110276,144.53,144.48,6.2251]
[1750758772011,5.18116211,144.55,144.48,6.2251]
[1750758772208,5.18116211,144.54,144.48,6.2251]
[1750758772524,20.78,144.56,144.48,6.2251]
[1750758772723,5.18034874,144.55,144.48,6.2251]
[1750758772920,5.18034874,144.54,144.48,6.2251]
[1750758773115,20.78,144.57,144.48,6.2251]
[1750758773316,25.95961408,144.56,144.48,6.2251]
[1750758773532,5.17961408,144.55,144.48,6.2251]
[1750758773740,5.17961408,144.54,144.48,6.2251]
[1750758773939,20.78,144.56,144.48,6.2251]
[1750758774132,5.17961573,144.55,144.48,6.2251]
[1750758774440,5.17961573,144.54,144.48,6.2251]
[1750758774657,20.78,144.56,144.48,6.2251]
[1750758774946,5.17916547,144.55,144.48,6.2251]
[1750758775238,5.17916547,144.54,144.48,6.2251]
[1750758775538,20.78,144.56,144.48,6.2251]
[1750758775737,5.1784024,144.55,144.48,6.2251]
[1750758775932,5.1784024,144.54,144.48,6.2251]
[1750758776122,25.9584024,144.56,144.48,6.2251]
[1750758776436,5.1784024,144.55,144.48,6.2251]
[1750758776637,20.78,144.56,144.48,6.2251]
[1750758776806,5.1776701,144.55,144.48,6.2251]
[1750758777005,20.78,144.56,144.48,6.2251]
[1750758777217,5.17769998,144.55,144.48,6.2251]
[1750758777425,20.78,144.57,144.48,6.2251]
[1750758777628,5.17739304,144.56,144.48,6.2251]
[1750758777815,5.17739304,144.55,144.48,6.2251]
[1750758778141,20.78,144.57,144.48,6.2251]
[1750758778428,5.17743686,144.56,144.48,6.2251]
[1750758778646,5.17743686,144.55,144.48,6.2251]
[1750758778939,20.78,144.57,144.48,6.2251]
[1750758779105,5.17743686,144.56,144.48,6.2251]
[1750758779306,5.17743686,144.55,144.48,6.2251]
[1750758779519,20.78,144.57,144.48,6.2251]
[1750758779719,5.17623642,144.56,144.48,6.2251]
[1750758779914,5.17623642,144.55,144.48,6.2251]
[1750758780152,20.78,144.57,144.48,6.2251]
[1750758780346,5.17700059,144.56,144.48,6.2251]
[1750758780560,20.78,144.57,144.48,6.2251]
[1750758780561,5.17700059,144.55,144.48,6.2251]
[1750758780852,20.78,144.57,144.48,6.2251]
[1750758781030,5.17681014,144.56,144.48,6.2251]
[1750758781232,5.17681014,144.55,144.48,6.2251]
[1750758781442,5.17681014,144.54,144.48,6.2251]
[1750758781644,5.17681014,144.53,144.47,1.5925]
[1750758781823,5.17681014,144.52,144.47,1.5925]
[1750758782018,5.17681014,144.53,144.47,1.5925]
[1750758782222,20.78,144.54,144.47,1.5925]
[1750758782223,5.17681014,144.52,144.47,1.5925]
[1750758782444,5.17681014,144.53,144.47,1.5925]
[1750758782746,6.45152687,144.56,144.47,1.5925]
[1750758782747,5.17681014,144.52,144.47,1.5925]
[1750758782954,25.95681014,144.54,144.47,1.5925]
[1750758783243,5.17681014,144.53,144.47,1.5925]
[1750758783444,5.17681014,144.52,144.47,1.5925]
[1750758783642,20.78,144.52,144.47,1.5925]
[1750758783949,5.17681014,144.51,144.47,1.5925]
[1750758784358,20.78,144.52,144.47,1.5925]
[1750758784843,25.95681014,144.52,144.45,6.2251]
[1750758785023,25.95681014,144.52,144.43,1.5458]
[1750758785024,20.78,144.5,144.43,1.5458]
[1750758785227,25.95681014,144.5,144.43,1.5458]
[1750758785426,20.78,144.5,144.43,1.5458]
[1750758785649,25.95681014,144.5,144.43,1.5458]
[1750758786462,172.55681014,144.5,144.43,1.5458]
[1750758786635,20.78,144.48,144.4,81.03751238]
[1750758786824,172.55681014,144.48,144.4,81.03751238]
[1750758787027,5.17681014,144.47,144.4,81.03751238]
[1750758787223,25.95681014,144.51,144.4,81.03751238]
[1750758788353,20.78,144.51,144.4,81.03751238]
[1750758789455,22.3189,144.52,144.4,81.03751238]
[1750758792954,20.78,144.52,144.41,7.8176]
[1750758794456,5.17681014,144.53,144.41,7.8176]
[1750758794654,5.17681014,144.53,144.42,1.5784]
[1750758797447,25.95681014,144.53,144.42,1.5784]
[1750758798540,32.22271014,144.53,144.42,1.5784]
[1750758799346,178.82271014,144.53,144.42,1.5784]
[1750758799530,20.78,144.51,144.42,1.5784]
[1750758803563,168.9133,144.51,144.42,1.5784]
[1750758803743,168.9133,144.51,144.4,81.03751238]
[1750758803744,20.78,144.49,144.4,81.03751238]
[1750758806066,20.78,144.49,144.41,1.5925]
[1750758808263,167.38,144.49,144.41,1.5925]
[1750758808662,5.15280122,144.48,144.41,1.5925]
[1750758808856,20.78,144.47,144.41,1.5925]
[1750758813763,167.38,144.48,144.41,1.5925]
[1750758820069,146.6,144.48,144.42,6.2251]
[1750758820253,6.45152687,144.52,144.42,6.2251]
[1750758820254,20.78,144.52,144.42,6.2251]
[1750758820454,25.94278848,144.52,144.42,6.2251]
[1750758823274,25.94278848,144.51,144.42,6.2251]
[1750758823476,20.78,144.51,144.43,1.5925]
[1750758823779,25.94278848,144.51,144.43,1.5925]
[1750758823975,20.78,144.51,144.43,1.5925]
[1750758824151,25.94278848,144.51,144.43,1.5925]
[1750758824353,20.78,144.51,144.43,1.5925]
[1750758824575,25.94278848,144.51,144.43,1.5925]
[1750758824768,5.16278848,144.5,144.43,1.5925]
[1750758824953,5.16278848,144.51,144.43,1.5925]
[1750758825154,5.16278848,144.5,144.43,1.5925]
[1750758825372,5.16278848,144.51,144.43,1.5925]
[1750758825673,32.39431535,144.5,144.43,1.5925]
[1750758825978,25.94278848,144.49,144.43,1.5925]
[1750758826182,5.16278848,144.48,144.43,1.5925]
[1750758826776,5.16278848,144.47,144.43,1.5925]
[1750758826954,5.16278848,144.48,144.43,1.5925]
[1750758827154,5.16278848,144.47,144.43,1.5925]
[1750758827356,25.94278848,144.49,144.43,1.5925]
[1750758827659,5.16278848,144.48,144.43,1.5925]
[1750758827869,5.16278848,144.5,144.43,1.5925]
[1750758828194,5.16278848,144.49,144.43,1.5925]
[1750758828363,5.16278848,144.5,144.43,1.5925]
[1750758828562,5.16278848,144.49,144.43,1.5925]
[1750758828772,5.16278848,144.5,144.43,1.5925]
[1750758829373,5.16278848,144.49,144.43,1.5925]
[1750758829570,146.6,144.51,144.43,1.5925]
[1750758829571,5.16278848,144.5,144.43,1.5925]
[1750758829783,5.16278848,144.49,144.43,1.5925]
[1750758829984,146.6,144.51,144.43,1.5925]
[1750758830976,6.45152687,144.55,144.44,6.2251]
[1750758831176,5.1757154,144.54,144.45,1.5028]
[1750758831478,5.1757154,144.53,144.45,1.5028]
[1750758831655,5.1757154,144.52,144.45,1.5028]
[1750758831858,5.1757154,144.54,144.45,1.5028]
[1750758832072,25.9557154,144.53,144.45,1.5028]
[1750758832266,32.40724227,144.52,144.45,1.5028]
[1750758832470,5.1757154,144.51,144.45,1.5028]
[1750758832683,5.1757154,144.5,144.45,1.5028]
[1750758832859,5.1757154,144.49,144.45,1.5028]
[1750758833055,5.1757154,144.48,144.45,1.5028]
[1750758833279,5.1757154,144.5,144.45,1.5028]
[1750758833581,5.1757154,144.49,144.45,1.5028]
[1750758833884,5.1757154,144.48,144.45,1.5028]
[1750758834064,5.1757154,144.5,144.45,1.5028]
[1750758834254,5.1757154,144.49,144.45,1.5028]
[1750758834459,5.1757154,144.48,144.45,1.5028]
[1750758834759,5.1757154,144.5,144.45,1.5028]
[1750758834959,5.1757154,144.49,144.45,1.5028]
[1750758835282,5.1757154,144.48,144.41,1.5657]
[1750758835474,5.1757154,144.5,144.41,1.5657]
[1750758835699,5.1757154,144.49,144.41,1.5657]
[1750758835879,5.1757154,144.48,144.41,1.5657]
[1750758836059,5.1757154,144.5,144.41,1.5657]
[1750758836259,5.1757154,144.49,144.41,1.5657]
[1750758836467,5.1757154,144.48,144.41,1.5657]
[1750758836670,25.9557154,144.5,144.41,1.5657]
[1750758836881,5.1757154,144.49,144.41,1.5657]
[1750758837066,5.1757154,144.48,144.41,1.5657]
[1750758837267,5.1757154,144.49,144.41,1.5657]
[1750758837558,5.1757154,144.48,144.41,1.5657]
[1750758837756,5.1757154,144.49,144.41,1.5657]
[1750758837959,5.1757154,144.48,144.41,1.5657]
[1750758838167,5.1757154,144.49,144.41,1.5657]
[1750758838367,5.1757154,144.48,144.41,1.5657]
[1750758838584,20.78,144.46,144.41,1.5657]
[1750758838777,5.1757154,144.5,144.41,1.5657]
[1750758838975,5.1757154,144.49,144.41,1.5657]
[1750758839176,5.1757154,144.48,144.41,1.5657]
[1750758839382,5.1757154,144.47,144.41,1.5657]
[1750758839582,5.1757154,144.49,144.41,1.5657]
[1750758839780,5.1757154,144.48,144.41,1.5657]
[1750758839973,5.1757154,144.47,144.41,1.5657]
[1750758840172,5.1757154,144.49,144.41,1.5657]
[1750758840382,5.1757154,144.48,144.41,1.5657]
[1750758840597,5.1757154,144.47,144.41,1.5657]
[1750758840795,5.1757154,144.49,144.41,1.5657]
[1750758840966,5.1757154,144.48,144.41,1.5657]
[1750758841164,5.1757154,144.49,144.41,1.5657]
[1750758841367,5.1757154,144.5,144.41,1.5657]
[1750758841588,5.1757154,144.49,144.41,1.5657]
[1750758841900,5.1757154,144.5,144.42,7.6924]
[1750758847782,146.6,144.51,144.42,7.6924]
[1750758848897,20.78,144.5,144.42,7.6924]
[1750758849083,146.6,144.51,144.42,7.6924]
[1750758849385,5.17347445,144.5,144.42,7.6924]
[1750758849595,146.6,144.51,144.42,7.6924]
[1750758850997,5.17321759,144.5,144.42,7.6924]
[1750758851704,146.6,144.51,144.42,7.6924]
[1750758851994,5.17296565,144.5,144.42,7.6924]
[1750758853092,146.6,144.51,144.42,7.6924]
[1750758853484,5.1731091,144.5,144.42,7.6924]
[1750758861400,6.46638637,144.55,144.43,1.5914]
[1750758861593,5.177697,144.54,144.43,1.5914]
[1750758861788,5.177697,144.53,144.43,1.5914]
[1750758861999,5.177697,144.52,144.43,1.5914]
[1750758862198,5.177697,144.51,144.43,1.5914]
[1750758862394,25.957697,144.54,144.43,1.5914]
[1750758862706,5.177697,144.53,144.43,1.5914]
[1750758862914,5.177697,144.52,144.43,1.5914]
[1750758863084,5.177697,144.51,144.43,1.5914]
[1750758863283,5.177697,144.5,144.43,1.5914]
[1750758863484,25.957697,144.53,144.43,1.5914]
[1750758863684,5.177697,144.52,144.43,1.5914]
[1750758863912,5.177697,144.51,144.43,1.5914]
[1750758864105,5.177697,144.5,144.43,1.5914]
[1750758864408,5.177697,144.49,144.43,1.5914]
[1750758864598,25.957697,144.52,144.43,1.5914]
[1750758864794,5.177697,144.51,144.43,1.5914]
[1750758865021,5.177697,144.5,144.43,1.5914]
[1750758865187,5.177697,144.49,144.43,1.5914]
[1750758865509,5.177697,144.51,144.43,1.5914]
[1750758865732,5.177697,144.5,144.43,1.5914]
[1750758866003,5.177697,144.49,144.43,1.5914]
[1750758866207,5.177697,144.51,144.43,1.5914]
[1750758866423,5.177697,144.5,144.43,1.5914]
[1750758866711,5.177697,144.49,144.43,1.5914]
[1750758866913,5.177697,144.51,144.43,1.5914]
[1750758867111,25.957697,144.5,144.39,1.5854]
[1750758867308,5.177697,144.49,144.39,1.5854]
[1750758867505,5.177697,144.48,144.39,1.5854]
[1750758867708,5.177697,144.47,144.39,1.5854]
[1750758868026,5.177697,144.49,144.39,1.5854]
[1750758868228,175.45238637,144.51,144.39,1.5854]
[1750758868229,5.177697,144.48,144.39,1.5854]
[1750758868392,5.177697,144.47,144.39,1.5854]
[1750758868596,5.177697,144.5,144.39,1.5854]
[1750758868816,5.177697,144.49,144.39,1.5854]
[1750758869030,5.177697,144.48,144.39,1.5854]
[1750758869202,5.177697,144.47,144.39,1.5854]
[1750758869401,5.177697,144.5,144.39,1.5854]
[1750758869615,5.177697,144.49,144.39,1.5854]
[1750758869919,5.177697,144.48,144.39,1.5854]
[1750758870118,5.177697,144.47,144.39,1.5854]
[1750758870312,5.177697,144.5,144.39,1.5854]
[1750758870618,153.06638637,144.51,144.39,1.5854]
[1750758870619,5.177697,144.49,144.39,1.5854]
[1750758870823,5.177697,144.48,144.39,1.5854]
[1750758871008,5.177697,144.5,144.39,1.5854]
[1750758871209,5.177697,144.49,144.39,1.5854]
[1750758871440,5.177697,144.48,144.39,1.5854]
[1750758871609,5.177697,144.5,144.39,1.5854]
[1750758871810,5.177697,144.49,144.39,1.5854]
[1750758872009,5.177697,144.48,144.39,1.5854]
[1750758872226,5.177697,144.5,144.39,1.5854]
[1750758872432,5.177697,144.49,144.41,1.5896]
[1750758872635,5.177697,144.5,144.41,1.5896]
[1750758872810,5.177697,144.49,144.41,1.5896]
[1750758873009,5.177697,144.5,144.41,1.5896]
[1750758874303,5.177697,144.5,144.43,1.5461]
[1750758874731,5.177697,144.53,144.43,1.5461]
[1750758874916,5.177697,144.52,144.43,1.5461]
[1750758875107,5.177697,144.51,144.43,1.5461]
[1750758875307,5.177697,144.53,144.43,1.5461]
[1750758875549,5.177697,144.52,144.43,1.5461]
[1750758875827,5.177697,144.51,144.43,1.5461]
[1750758876023,5.177697,144.54,144.44,7.735]
[1750758876223,167.38,144.56,144.44,7.735]
[1750758876224,5.177697,144.53,144.44,7.735]
[1750758876415,5.177697,144.52,144.44,7.735]
[1750758876619,5.177697,144.54,144.44,7.735]
[1750758876949,5.177697,144.53,144.44,7.735]
[1750758877153,5.177697,144.52,144.44,7.735]
[1750758877431,5.177697,144.55,144.44,7.735]
[1750758877634,5.177697,144.54,144.44,7.735]
[1750758877827,5.177697,144.53,144.44,7.735]
[1750758878029,5.177697,144.52,144.44,7.735]
[1750758878227,5.177697,144.55,144.44,7.735]
[1750758878428,5.177697,144.54,144.44,7.735]
[1750758878635,5.177697,144.53,144.44,7.735]
[1750758878814,5.177697,144.52,144.44,7.735]
[1750758879017,5.177697,144.55,144.44,7.735]
[1750758879209,5.177697,144.54,144.44,7.735]
[1750758879414,11.64408337,144.53,144.44,7.735]
[1750758879625,5.177697,144.52,144.44,7.735]
[1750758879825,5.177697,144.51,144.44,7.735]
[1750758880042,5.177697,144.5,144.44,7.735]
[1750758880240,5.177697,144.52,144.44,7.735]
[1750758880434,5.177697,144.51,144.44,7.735]
[1750758880621,5.177697,144.53,144.44,7.735]
[1750758880820,5.177697,144.52,144.44,7.735]
[1750758881020,5.177697,144.51,144.44,7.735]
[1750758881328,5.177697,144.53,144.44,7.735]